Workbook

Sheet Vejledning
A1: Vejledning til regneark, lønberegning.
A3: Regnearket anvendes til kontrol af lønsedler . Man skal bruge sin lønseddel og opgaveoversigten
A4: Regnearket kan anvendes af lærere og børnehaveklasseledere ansat på folkeskoler i Odense.
A5: Medlemmer ansat andre steder kan få hjælp til at kontrollere deres lønsedler i Odense Lærerforening
A8: Find det relevante ark i regnearket
A9: (Lærere Ny Løn, Lærere OK ansatte anc. Løn, Lærere tjenestemænd,
A10: Børnehaveklasseledere Ny Løn, Børnehaveklasseledere anc. Løn,
A11: Børnehaveklasseledere tjenestemænd)
A13: Der kan kun indtastes i de gule felter!
A15: Beskæftigelsesgrad indtastes med ugentligt timetal (fremgår af lønsedlen)
A16: Grundløn fremkommer automatisk, tillæg for anciennitet skal indtastes med 1 ved relevant anciennitetstillæg (fremgår af lønsedlen)
A17: Forhåndsaftalt funktions- og kvalifikationsløn indtastes med 1 ud for funktionen (kvalifikationen)
A18: Ved delt funktion anvendes decimaltal.
A19: Odensetillæg fremgår automatisk
A21: Skoleaftaler og andet, der ikke er nævnt i regnearket indtastes med det månedlige beløb, der fremgår af lønsedlen.
A22: Der kan evt. indtastes navn på disse tillæg.
A24: Undervisningstillæg, specialundervisningstillæg m.m. indtastes i de relevante felter med det årlige undervisningstimetal
A25: Timetallet fremgår af opgaveoversigten
A27: Månedslønnen fremkommer automatisk og er sammenlignelig med lønsedlen
A29: Bemærk: Der kan fremkomme øreafvigelser p.g.a. afrunding.
A31: Arbejdstidsbestemte tillæg udbetales konkret og fremgår ikke af lønberegneren
A33: Kommentarer eller rettelser er velkomne, kontakt Bo Tryggedsson, Odense Lærerforening.

Sheet Lærere Ny Løn
A1: Lønberegning niveau | C1: =satser!F1 -> 01.01.2016
A2: Lærere Ny løn
A5: Navn:
A6: Måned
A8: Beskæftigelsesgrad (indsæt ugentligt timetal) | B8: 37
C9: Månedsløn
A10: Grundløn trin 30 | B10: 30 | C10: =satser!B10*B8/37 -> 26090.67
A11: Grundlønstillæg - lærer | C11: =IF(B14=1,"",satser!I3*B8/37) -> 
A12: Lærere på grundløn | C12: =IF((B12+B13+B14)>1,"Fejl: kun et tillæg",IF(B12=1,satser!D11*B8/37,"")) -> 
A13: Anciennitetstillæg (trin 30-34) | C13: =IF((B12+B13+B14)>1,"Fejl: kun et tillæg",IF(B13=1,satser!D14*B8/37,"")) -> 
A14: Anciennitetstillæg (trin 30-39) | B14: 1 | C14: =IF((B12+B13+B14)>1,"Fejl: kun et tillæg",IF(B14=1,satser!D19*B8/37,"")) -> 4123.41
A15: Anciennitetstillæg - lærer | B15: 1 | C15: =IF(AND(B15=1,B14=1),satser!I4*B8/37,"") -> 1098.165
A16: Centralt lærertillæg | C16: =satser!I13*B8/37 -> 307.4862
A17: Undervisertillæg | C17: =satser!I9*B8/37 -> 1427.6145
A19: Funktions- og kvalifikationsløn: Tast 1 i det gule felt, hvis omfattet:
A20: Nyt Odense tillæg | C20: =satser!I20*B8/37 -> 1109.15
A21: Mange 2-sprogede elever | C21: =(IF(B21>1,"Fejl:kun et tillæg",IF(B21>0,B21*satser!I21,""))) -> 
A22: Kl. lærer/bh.kl.leder >27 | C22: =(IF(B22>1,"Fejl:kun et tillæg",IF(B22>0,B22*satser!I22,""))) -> 
A23: Kontaktperson til elevråd | C23: =(IF(B23>1,"Fejl:kun et tillæg",IF(B23>0,B23*satser!I23,""))) -> 
A24: Obs-klasser | C24: =(IF(B24>1,"Fejl:kun et tillæg",IF(B24>0,B24*satser!I24*B8/37,""))) -> 
A25: Flere/skiftende arbejdssteder | C25: =(IF(B25>1,"Fejl:kun et tillæg",IF(B25>0,B25*satser!I25*B8/37,""))) -> 
A26: TR-tillæg | C26: =(IF(B26>1,"Fejl:kun et tillæg",IF(B26>0,B26*satser!I26,""))) -> 
A27: Valgområde - mere end 35 ansatte | C27: =(IF(B27>1,"Fejl:kun et tillæg",IF(B27>0,B27*satser!I27,""))) -> 
A28: AMR funktion | C28: =(IF(B28>1,"Fejl:kun et tillæg",IF(B28>0,B28*satser!I28,""))) -> 
A29: Spec-uv skolebørn | C29: =(IF(B29>1,"Fejl:kun et tillæg",IF(B29>0,B29*satser!I29,""))) -> 
A31: Specialv./erfaring fra Vollsmose skoler | C31: =(IF(B31>1,"Fejl:kun et tillæg",IF(B31>0,B31*satser!I31*B8/37,""))) -> 
A32: Pæd. Diplomudd./Masterudd. | C32: =(IF(B32>1,"Fejl:kun et tillæg",IF(B32>0,B32*satser!I32*B8/37,""))) -> 
A34: Undervisnings- og specialundervisningstillæg m.m. Indsæt tal fra opgaveoversigten i de gule felter
A35: I alt undervisning
A36: uv-tillæg > 750 | B36: =(IF((B35/B8*37)>750,((B35/B8*37)-750)*B8/37,0))/12 -> 0 | C36: =IF(B36>0,B36*satser!I36,"") -> 
A37: tale/høre tillæg | C37: =IF(B37>0,(B37/12)*satser!I37,"") -> 
A38: Spec-skole uv-tillæg | C38: =IF(B38>0,(B38/12)*satser!I38,"") -> 
A40: Andre tillæg (fx skoleaftaler) Indtast beløb fra lønseddel
A44: Fast løn i alt | C44: =SUM(C10:C43) -> 34156.4957

Sheet Lærere OK ansatte anc.løn
A1: Lønberegning niveau | C1: =satser!F1 -> 01.01.2016
A2: Lærere OK ansatte anc. Løn
A5: Navn:
A6: Måned
A8: Beskæftigelsesgrad (indsæt ugentligt timetal) | B8: 30
C10: Månedsløn
A11: Grundløn trin 42 | B11: 42 | C11: =satser!B22*B8/37 -> 25769.86216
A12: Stillingstillæg - lærer | C12: =satser!I5*B8/37 -> 1157.52527
A13: Centralt lærertillæg | C13: =satser!I13*B8/37 -> 249.3131351
A14: Undervisertillæg | C14: =satser!I10*B8/37 -> 489.7222297
A19: Funktions- og kvalifikationsløn: Tast 1 i det gule felt, hvis omfattet:
A20: Nyt Odense tillæg | C20: =satser!I20*B8/37 -> 899.3108108
A21: Mange 2-sprogede elever | C21: =(IF(B21>1,"Fejl:kun et tillæg",IF(B21>0,B21*satser!J21,""))) -> 
A22: Kl. lærer/bh.kl.leder >27 | C22: =(IF(B22>1,"Fejl:kun et tillæg",IF(B22>0,B22*satser!J22,""))) -> 
A23: Kontaktperson til elevråd | C23: =(IF(B23>1,"Fejl:kun et tillæg",IF(B23>0,B23*satser!J23,""))) -> 
A24: Obs-klasser | C24: =(IF(B24>1,"Fejl:kun et tillæg",IF(B24>0,B24*satser!J24*B8/37,""))) -> 
A25: Flere/skiftende arbejdssteder | C25: =(IF(B25>1,"Fejl:kun et tillæg",IF(B25>0,B25*satser!J25*B8/37,""))) -> 
A26: TR-tillæg | C26: =(IF(B26>1,"Fejl:kun et tillæg",IF(B26>0,B26*satser!J26,""))) -> 
A27: Valgområde - mere end 35 ansatte | C27: =(IF(B27>1,"Fejl:kun et tillæg",IF(B27>0,B27*satser!J27,""))) -> 
A28: AMR funktion | C28: =(IF(B28>1,"Fejl:kun et tillæg",IF(B28>0,B28*satser!J28,""))) -> 
A29: Spec-uv skolebørn | C29: =(IF(B29>1,"Fejl:kun et tillæg",IF(B29>0,B29*satser!J29,""))) -> 
A31: Specialv./erfaring fra Vollsmose skoler | B31: 1 | C31: =(IF(B31>1,"Fejl:kun et tillæg",IF(B31>0,B31*satser!J31*B8/37,""))) -> 320.5459459
A32: Pæd. Diplomudd./Masterudd. | C32: =(IF(B32>1,"Fejl:kun et tillæg",IF(B32>0,B32*satser!J32*B8/37,""))) -> 
A34: Undervisnings- og specialundervisningstillæg m.m. Indsæt tal fra opgaveoversigten i de gule felter
A35: I alt undervisning | B35: 617.5
A36: uv-tillæg > 750 | B36: =(IF((B35/B8*37)>750,((B35/B8*37)-750)*B8/37,0))/12 -> 0.7826576577 | C36: =IF(B36>0,B36*satser!J36,"") -> 92.8231982
A37: tale/høre tillæg | C37: =IF(B37>0,(B37/12)*satser!J37,"") -> 
A38: Spec-skole uv-tillæg | C38: =IF(B38>0,(B38/12)*satser!J38,"") -> 
A40: Andre tillæg (fx skoleaftaler) Indtast beløb fra lønseddel
A44: Fast løn i alt | C44: =SUM(C10:C43) -> 28979.10275

Sheet Lærere Tjenestemænd
A1: Lønberegning niveau | C1: =satser!F1 -> 01.01.2016
A2: Lærere Tjenestemænd
A5: Navn:
A6: Måned
A8: Beskæftigelsesgrad (indsæt ugentligt timetal) | B8: 37
C10: Månedsløn
A11: Grundløn trin 42 | B11: 42 | C11: =satser!B22*B8/37 -> 31782.83
A12: Stillingstillæg - lærer | C12: =satser!I5*B8/37 -> 1427.6145
A13: Pension - stillingstillæg lærer | C13: =IF(B13=1,satser!I6,"") -> 
A14: Centralt lærertillæg | C14: =satser!J13*B8/37 -> 356.903625
A15: Undervisertillæg | C15: =satser!I10*B8/37 -> 603.99075
A19: Funktions- og kvalifikationsløn: Tast 1 i det gule felt, hvis omfattet:
A20: Nyt Odense tillæg | C20: =satser!I20*B8/37 -> 1109.15
A21: Mange 2-sprogede elever | C21: =(IF(B21>1,"Fejl:kun et tillæg",IF(B21>0,B21*satser!J21,""))) -> 
A22: Kl. lærer/bh.kl.leder >27 | C22: =(IF(B22>1,"Fejl:kun et tillæg",IF(B22>0,B22*satser!J22,""))) -> 
A23: Kontaktperson til elevråd | C23: =(IF(B23>1,"Fejl:kun et tillæg",IF(B23>0,B23*satser!J23,""))) -> 
A24: Obs-klasser | C24: =(IF(B24>1,"Fejl:kun et tillæg",IF(B24>0,B24*satser!J24*B8/37,""))) -> 
A25: Flere/skiftende arbejdssteder | C25: =(IF(B25>1,"Fejl:kun et tillæg",IF(B25>0,B25*satser!J25*B8/37,""))) -> 
A26: TR-tillæg | C26: =(IF(B26>1,"Fejl:kun et tillæg",IF(B26>0,B26*satser!J26,""))) -> 
A27: Valgområde - mere end 35 ansatte | C27: =(IF(B27>1,"Fejl:kun et tillæg",IF(B27>0,B27*satser!J27,""))) -> 
A28: AMR funktion | C28: =(IF(B28>1,"Fejl:kun et tillæg",IF(B28>0,B28*satser!J28,""))) -> 
A29: Spec-uv skolebørn | C29: =(IF(B29>1,"Fejl:kun et tillæg",IF(B29>0,B29*satser!J29,""))) -> 
A31: Specialv./erfaring fra Vollsmose skoler | C31: =(IF(B31>1,"Fejl:kun et tillæg",IF(B31>0,B31*satser!J31*B8/37,""))) -> 
A32: Pæd. Diplomudd./Masterudd. | C32: =(IF(B32>1,"Fejl:kun et tillæg",IF(B32>0,B32*satser!D23*B8/37,""))) -> 
A34: Undervisnings- og specialundervisningstillæg m.m. Indsæt tal fra opgaveoversigten i de gule felter
A35: I alt undervisning
A36: uv-tillæg > 750 | B36: =(IF((B35/B8*37)>750,((B35/B8*37)-750)*B8/37,0))/12 -> 0 | C36: =IF(B36>0,B36*satser!J36,"") -> 
A37: tale/høre tillæg | C37: =IF(B37>0,(B37/12)*satser!J37,"") -> 
A38: Spec-skole uv-tillæg | C38: =IF(B38>0,(B38/12)*satser!J38,"") -> 
A40: Andre tillæg (fx skoleaftaler) Indtast beløb fra lønseddel
A44: Fast løn i alt | C44: =SUM(C10:C43) -> 35280.48887

Sheet Bh. kl. ledere Ny Løn
A1: Lønberegning niveau | C1: =satser!F1 -> 01.01.2016
A2: Børnehaveklasseledere Ny løn
A5: Navn:
A6: Måned
A8: Beskæftigelsesgrad (indsæt ugentligt timetal) | B8: 37
C9: Månedsløn
A10: Grundløn trin 27 | B10: 27 | C10: =satser!B7*B8/37 -> 24885.33
A11: Grundlønstillæg - børnehaveklasseleder | C11: =IF(B14=1,"",satser!I7*B8/37) -> 219.633
A13: Anciennitetstillæg (trin 27-30) | C13: =IF((B13+B14)>1,"Fejl: kun et tillæg",IF(B13=1,satser!D10*B8/37,"")) -> 
A14: Anciennitetstillæg (trin 27-32) | C14: =IF((B12+B13+B14)>1,"Fejl: kun et tillæg",IF(B14=1,satser!D12*B8/37,"")) -> 
A15: Anciennitetstillæg - børnehaveklasseleder | C15: =IF(AND(B15=1,B14=1),satser!I8*B8/37,"") -> 
A16: Centralt lærertillæg | C16: =satser!I13*B8/37 -> 307.4862
A17: Undervisertillæg | C17: =satser!I11*B8/37 -> 1691.1741
A19: Funktions- og kvalifikationsløn: Tast 1 i det gule felt, hvis omfattet:
A20: Nyt Odense tillæg | C20: =satser!I20*B8/37 -> 1109.15
A21: Mange 2-sprogede elever | C21: =(IF(B21>1,"Fejl:kun et tillæg",IF(B21>0,B21*satser!I21,""))) -> 
A22: Kl. lærer/bh.kl.leder >27 | C22: =(IF(B22>1,"Fejl:kun et tillæg",IF(B22>0,B22*satser!I22,""))) -> 
A23: Kontaktperson til elevråd | C23: =(IF(B23>1,"Fejl:kun et tillæg",IF(B23>0,B23*satser!I23,""))) -> 
A24: Obs-klasser | C24: =(IF(B24>1,"Fejl:kun et tillæg",IF(B24>0,B24*satser!I24*B8/37,""))) -> 
A25: Flere/skiftende arbejdssteder | C25: =(IF(B25>1,"Fejl:kun et tillæg",IF(B25>0,B25*satser!I25*B8/37,""))) -> 
A26: TR-tillæg | C26: =(IF(B26>1,"Fejl:kun et tillæg",IF(B26>0,B26*satser!I26,""))) -> 
A27: Valgområde - mere end 35 ansatte | C27: =(IF(B27>1,"Fejl:kun et tillæg",IF(B27>0,B27*satser!I27,""))) -> 
A28: AMR funktion | C28: =(IF(B28>1,"Fejl:kun et tillæg",IF(B28>0,B28*satser!I28,""))) -> 
A29: Spec-uv skolebørn | C29: =(IF(B29>1,"Fejl:kun et tillæg",IF(B29>0,B29*satser!I29,""))) -> 
A31: Specialv./erfaring fra Vollsmose skoler | C31: =(IF(B31>1,"Fejl:kun et tillæg",IF(B31>0,B31*satser!I31*B8/37,""))) -> 
A32: Pæd. Diplomudd./Masterudd. | C32: =(IF(B32>1,"Fejl:kun et tillæg",IF(B32>0,B32*satser!I32*B8/37,""))) -> 
A34: Undervisnings- og specialundervisningstillæg m.m. Indsæt tal fra opgaveoversigten i de gule felter
A35: I alt undervisning
A36: uv-tillæg > 836 | B36: =(IF((B35/B8*37)>835,((B35/B8*37)-835)*B8/37,0))/12 -> 0 | C36: =IF(B36>0,B36*satser!I36,"") -> 
A37: tale/høre tillæg | C37: =IF(B37>0,(B37/12)*satser!I37,"") -> 
A38: Spec-skole uv-tillæg | C38: =IF(B38>0,(B38/12)*satser!I38,"") -> 
A39: to-sprogede elever | C39: =IF(B39>0,(B39/12)*satser!I40,"") -> 
A41: Andre tillæg (fx skoleaftaler) Indtast beløb fra lønseddel
A45: Fast løn i alt | C45: =SUM(C10:C44) -> 28212.7733

Sheet Bh. kl. ledere Anc. løn
A1: Lønberegning niveau | C1: =satser!F1 -> 01.01.2016
A2: Børnehaveklasseledere anc. Løn
A5: Navn:
A6: Måned
A8: Beskæftigelsesgrad (indsæt ugentligt timetal) | B8: 37
C9: Månedsløn
A10: Grundløn trin 35 | B10: 35 | C10: =satser!B15*B8/37 -> 28271.58
A11: Centralt lærertillæg | C11: =satser!I13*B8/37 -> 307.4862
A12: Undervisertillæg | C12: =satser!I12*B8/37 -> 867.55035
A19: Funktions- og kvalifikationsløn: Tast 1 i det gule felt, hvis omfattet:
A20: Nyt Odense tillæg | C20: =satser!I20*B8/37 -> 1109.15
A21: Mange 2-sprogede elever | C21: =(IF(B21>1,"Fejl:kun et tillæg",IF(B21>0,B21*satser!J21,""))) -> 
A22: Kl. lærer/bh.kl.leder >27 | C22: =(IF(B22>1,"Fejl:kun et tillæg",IF(B22>0,B22*satser!J22,""))) -> 
A23: Kontaktperson til elevråd | C23: =(IF(B23>1,"Fejl:kun et tillæg",IF(B23>0,B23*satser!J23,""))) -> 
A24: Obs-klasser | C24: =(IF(B24>1,"Fejl:kun et tillæg",IF(B24>0,B24*satser!J24*B8/37,""))) -> 
A25: Flere/skiftende arbejdssteder | C25: =(IF(B25>1,"Fejl:kun et tillæg",IF(B25>0,B25*satser!J25*B8/37,""))) -> 
A26: TR-tillæg | C26: =(IF(B26>1,"Fejl:kun et tillæg",IF(B26>0,B26*satser!J26,""))) -> 
A27: Valgområde - mere end 35 ansatte | C27: =(IF(B27>1,"Fejl:kun et tillæg",IF(B27>0,B27*satser!J27,""))) -> 
A28: AMR funktion | C28: =(IF(B28>1,"Fejl:kun et tillæg",IF(B28>0,B28*satser!J28,""))) -> 
A29: Spec-uv skolebørn | C29: =(IF(B29>1,"Fejl:kun et tillæg",IF(B29>0,B29*satser!J29,""))) -> 
A31: Specialv./erfaring fra Vollsmose skoler | C31: =(IF(B31>1,"Fejl:kun et tillæg",IF(B31>0,B31*satser!J31*B8/37,""))) -> 
A32: Pæd. Diplomudd./Masterudd. | C32: =(IF(B32>1,"Fejl:kun et tillæg",IF(B32>0,B32*satser!J32*B8/37,""))) -> 
A34: Undervisnings- og specialundervisningstillæg m.m. Indsæt tal fra opgaveoversigten i de gule felter
A35: I alt undervisning
A36: uv-tillæg > 836 | B36: =(IF((B35/B8*37)>835,((B35/B8*37)-835)*B8/37,0))/12 -> 0 | C36: =IF(B36>0,B36*satser!J36,"") -> 
A37: tale/høre tillæg | C37: =IF(B37>0,(B37/12)*satser!J37,"") -> 
A38: Spec-skole uv-tillæg | C38: =IF(B38>0,(B38/12)*satser!J38,"") -> 
A39: to-sprogede elever | C39: =IF(B39>0,(B39/12)*satser!J40,"") -> 
A41: Andre tillæg (fx skoleaftaler) Indtast beløb fra lønseddel
A45: Fast løn i alt | C45: =SUM(C10:C44) -> 30555.76655

Sheet Bh. kl. ledere tjenestemænd
A1: Lønberegning niveau | C1: =satser!F1 -> 01.01.2016
A2: Børnehaveklasseledere tjenestemænd
A5: Navn:
A6: Måned
A8: Beskæftigelsesgrad (indsæt ugentligt timetal) | B8: 37
C9: Månedsløn
A10: Grundløn trin 35 | B10: 35 | C10: =satser!B15*B8/37 -> 28271.58
A11: Centralt lærertillæg | C11: =satser!J13*B8/37 -> 356.903625
A12: Undervisertillæg | C12: =satser!I12*B8/37 -> 867.55035
A19: Funktions- og kvalifikationsløn: Tast 1 i det gule felt, hvis omfattet:
A20: Nyt Odense tillæg | C20: =satser!I20*B8/37 -> 1109.15
A21: Mange 2-sprogede elever | C21: =(IF(B21>1,"Fejl:kun et tillæg",IF(B21>0,B21*satser!J21,""))) -> 
A22: Kl. lærer/bh.kl.leder >27 | C22: =(IF(B22>1,"Fejl:kun et tillæg",IF(B22>0,B22*satser!J22,""))) -> 
A23: Kontaktperson til elevråd | C23: =(IF(B23>1,"Fejl:kun et tillæg",IF(B23>0,B23*satser!J23,""))) -> 
A24: Obs-klasser | C24: =(IF(B24>1,"Fejl:kun et tillæg",IF(B24>0,B24*satser!J24*B8/37,""))) -> 
A25: Flere/skiftende arbejdssteder | C25: =(IF(B25>1,"Fejl:kun et tillæg",IF(B25>0,B25*satser!J25*B8/37,""))) -> 
A26: TR-tillæg | C26: =(IF(B26>1,"Fejl:kun et tillæg",IF(B26>0,B26*satser!J26,""))) -> 
A27: Valgområde - mere end 35 ansatte | C27: =(IF(B27>1,"Fejl:kun et tillæg",IF(B27>0,B27*satser!J27,""))) -> 
A28: AMR funktion | C28: =(IF(B28>1,"Fejl:kun et tillæg",IF(B28>0,B28*satser!J28,""))) -> 
A29: Spec-uv skolebørn | C29: =(IF(B29>1,"Fejl:kun et tillæg",IF(B29>0,B29*satser!J29,""))) -> 
A31: Specialv./erfaring fra Vollsmose skoler | C31: =(IF(B31>1,"Fejl:kun et tillæg",IF(B31>0,B31*satser!J31*B8/37,""))) -> 
A32: Pæd. Diplomudd./Masterudd. | C32: =(IF(B32>1,"Fejl:kun et tillæg",IF(B32>0,B32*satser!D16*B8/37,""))) -> 
A34: Undervisnings- og specialundervisningstillæg m.m. Indsæt tal fra opgaveoversigten i de gule felter
A35: I alt undervisning
A36: uv-tillæg > 836 | B36: =(IF((B35/B8*37)>835,((B35/B8*37)-835)*B8/37,0))/12 -> 0 | C36: =IF(B36>0,B36*satser!J36,"") -> 
A37: tale/høre tillæg | C37: =IF(B37>0,(B37/12)*satser!J37,"") -> 
A38: Spec-skole uv-tillæg | C38: =IF(B38>0,(B38/12)*satser!J38,"") -> 
A39: to-sprogede elever | C39: =IF(B39>0,(B39/12)*satser!J40,"") -> 
A41: Andre tillæg (fx skoleaftaler) Indtast beløb fra lønseddel
A45: Fast løn i alt | C45: =SUM(C10:C44) -> 30605.18398

Sheet satser
A1: Satser pr. | F1: 01.01.2016
G2: Grundbeløb | I2: Månedligt beløb pr. | J2: =F1 -> 01.01.2016
F3: Grundlønstillæg - lærer | G3: 3000 | I3: =G3*C26/12 -> 329.4495
F4: Anciennitetstillæg - lærer | G4: 10000 | I4: =G4*C26/12 -> 1098.165
F5: Stillingstillæg - lærer | H5: 13000 | I5: =H5*C26/12 -> 1427.6145
A6: Løntrin | B6: Pr. måned | C6: Anciennitetstillæg | F6: Pension - stillingstilæg lærer | H6: 2202 | I6: =H6*C26/12 -> 241.815933 | J6: Beløbet er 17,3% af 13.000 fratrukket særlig ferie
A7: 27 | B7: 24885.33 | F7: Grundlønstillæg - børnehaveklasseleder | G7: 2000 | I7: =G7*C26/12 -> 219.633
A8: 28 | B8: 25278.92 | F8: Anciennitetstillæg - børnehaveklasseleder | G8: 7000 | I8: =G8*C26/12 -> 768.7155
A9: 29 | B9: 25680.83 | F9: Undervisertillæg, lærere Ny Løn | G9: 13000 | I9: =G9*C26/12 -> 1427.6145
A10: 30 | B10: 26090.67 | C10: 27-30 | D10: =B10-B7 -> 1205.34 | F10: Undervisertillæg, lærere Anciennitetsløn | G10: 5500 | I10: =G10*C26/12 -> 603.99075
A11: 31 | B11: 26509.33 | C11: 30-31 | D11: =B11-B10 -> 418.66 | F11: Undervisertillæg, børehaveklasseledere, Ny Løn | G11: 15400 | I11: =G11*C26/12 -> 1691.1741
A12: 32 | B12: 26936.5 | C12: 27-32 | D12: =B12-B7 -> 2051.17 | F12: Undervisertillæg, børehaveklasseledere, Anciennitetsløn | G12: 7900 | I12: =G12*C26/12 -> 867.55035
A13: 33 | B13: 27372.42 | F13: Centralt lærertillæg | G13: 2800 | H13: 3250 | I13: =G13*C26/12 -> 307.4862 | J13: =H13*C26/12 -> 356.903625
A14: 34 | B14: 27817.75 | C14: 30 - 34 | D14: =B14-B10 -> 1727.08 | H14: (tjenestemænd) | J14: (tjenestemænd)
A15: 35 | B15: 28271.58
A16: 36 | B16: 28735.08 | C16: 35 - 36 | D16: =B16-B15 -> 463.5
A17: 37 | B17: 29207.75
A18: 38 | B18: 29711.92 | G18: Grundbeløb | I18: Månedligt beløb pr. | J18: =F1 -> 01.01.2016
A19: 39 | B19: 30214.08 | C19: 30 - 39 | D19: =B19-B10 -> 4123.41 | F19: Funktions- og kvalifikationsløn: | G19: Ny Løn | H19: Anciennitetsløn | I19: Ny Løn | J19: Anciennitetsløn
A20: 40 | B20: 30726.75 | F20: Nyt Odense tillæg | G20: 10100 | H20: 10100 | I20: =ROUND(G20*$C$26/12,2) -> 1109.15 | J20: =ROUND(H20*$C$26/12,2) -> 1109.15
A21: 41 | B21: 31249.58 | F21: Mange 2-sprogede elever | G21: 4200 | H21: 3100 | I21: 461.23 | J21: 340.43
A22: 42 | B22: 31782.83 | F22: Kl. lærer/bh.kl.leder >27 | G22: 4200 | H22: 3100 | I22: 461.23 | J22: 340.43
A23: 43 | B23: 32489.25 | C23: 42 - 43 | D23: =B23-B22 -> 706.42 | F23: Kontaktperson til elevråd | G23: 3100 | H23: 3100 | I23: 340.43 | J23: 340.43
F24: Obs-klasser | G24: 4200 | H24: 4200 | I24: 461.23 | J24: 461.23
F25: Flere/skiftende arbejdssteder | G25: 3100 | H25: 3100 | I25: 340.43 | J25: 340.43
A26: Reguleringsfaktor: | C26: 1.317798 | F26: TR-tillæg | G26: 5000 | H26: 5000 | I26: 549.08 | J26: 549.08
F27: valgområde - mere end 35 ansatte | G27: 1000 | H27: 1000 | I27: 109.82 | J27: 109.82
F28: AMR funktion | G28: 5000 | H28: 5000 | I28: 549.08 | J28: 549.08
F29: Spec-uv skolebørn | G29: 18600 | H29: 18600 | I29: 2042.59 | J29: 2042.59
F31: Specialv./erfaring fra Vollsmose skoler | G31: 3600 | H31: 3600 | I31: =ROUND(G31*$C$26/12,2) -> 395.34 | J31: =ROUND(H31*$C$26/12,2) -> 395.34
F32: Pæd. Diplomudd./Masterudd. | G32: 7500 | H32: 7500 | I32: =ROUND(G32*$C$26/12,2) -> 823.62 | J32: =ROUND(H32*$C$26/12,2) -> 823.62 | K32: Tjenestemænd dog 1 trin
F35: Undervisnings- og specialundervisningstillæg m.m.
F36: uv-tillæg > 750 | G36: 90 | H36: 90 | I36: =ROUND(G36*$C$26,2) -> 118.6 | J36: 118.6
F37: tale/høre tillæg | G37: 25.84 | H37: 25.84 | I37: 34.05 | J37: 34.05
F38: Spec-skole uv-tillæg | G38: 18.92 | H38: 18.92 | I38: 24.93 | J38: 24.93
F40: to-sprogede elever | G40: 18.92 | H40: 18.92 | I40: =ROUND(G40*$C$26,2) -> 24.93 | J40: =ROUND(H40*$C$26,2) -> 24.93
